bitfinex/quotes_BTCUSD_20251009
["timestamp","ask_amount","ask_price","bid_price","bid_amount"]
[1760018739988,1.39735329,122180.0,122170.0,1e-08]
[1760018740853,1.2973533,122180.0,122170.0,1e-08]
[1760018741053,1.35777518,122180.0,122170.0,1e-08]
[1760018741256,1.45777517,122180.0,122170.0,1e-08]
[1760018741880,1.39735329,122180.0,122170.0,1e-08]
[1760018743218,1.40035329,122180.0,122170.0,1e-08]
[1760018743425,1.41520943,122180.0,122170.0,1e-08]
[1760018745193,1.31220944,122180.0,122170.0,1e-08]
[1760018745399,1.45800225,122180.0,122170.0,1e-08]
[1760018745560,1.3003533,122180.0,122170.0,1e-08]
[1760018746435,0.9573533,122180.0,122170.0,1e-08]
[1760018746641,1.02720139,122180.0,122170.0,1e-08]
[1760018746880,0.9272014,122180.0,122170.0,0.16370632]
[1760018747036,1.2973533,122180.0,122170.0,1e-08]
[1760018747241,1.39735329,122180.0,122170.0,0.25632001]
[1760018747513,0.60331395,122180.0,122170.0,0.41998632]
[1760018747721,0.50331396,122180.0,122170.0,0.41998632]
[1760018747912,0.47616206,122180.0,122170.0,0.22207689]
[1760018748149,1.06374849,122180.0,122170.0,0.41986632]
[1760018748364,0.08312206,122180.0,122170.0,0.46351632]
[1760018748575,0.08512206,122180.0,122170.0,0.20735632]
[1760018748793,0.08512206,122180.0,122170.0,0.46343632]
[1760018749009,0.08512206,122180.0,122170.0,0.20735632]
[1760018749235,0.08312206,122180.0,122170.0,0.50595589]
[1760018749448,0.08312206,122180.0,122170.0,0.50646558]
[1760018749665,0.08412206,122180.0,122170.0,0.50646558]
[1760018750116,0.08412206,122180.0,122170.0,0.54670558]
[1760018750969,0.08412206,122180.0,122170.0,0.29062558]
[1760018750970,0.001,122180.0,122170.0,0.29062558]
[1760018751197,0.001,122180.0,122170.0,0.54622558]
[1760018751421,0.001,122180.0,122170.0,0.29062558]
[1760018751595,0.001,122180.0,122170.0,0.54622558]
[1760018752082,0.001,122180.0,122170.0,0.54614558]
[1760018752301,0.00136291,122200.0,122190.0,0.16367951]
[1760018752532,0.00136291,122200.0,122190.0,0.55877408]
[1760018752732,0.00136291,122200.0,122190.0,0.61944559]
[1760018753374,0.00136291,122200.0,122190.0,0.61928559]
[1760018753581,0.00136291,122200.0,122190.0,0.61924559]
[1760018753847,0.27648109,122200.0,122190.0,0.04227]
[1760018754058,0.43999999,122180.0,122170.0,0.42561585]
[1760018754268,1.36811139,122180.0,122170.0,0.0856297]
[1760018755120,1.36811139,122180.0,122170.0,0.3491097]
[1760018755315,1.36811139,122180.0,122170.0,0.38565167]
[1760018755558,1.36811139,122180.0,122170.0,0.12217167]
[1760018755763,1.36811139,122180.0,122170.0,0.3490297]
[1760018755939,1.36811139,122180.0,122170.0,0.0856297]
[1760018756154,1.32646139,122180.0,122170.0,0.3488697]
[1760018756283,1.38304029,122180.0,122170.0,0.0856297]
[1760018756484,0.79345386,122180.0,122170.0,0.3488697]
[1760018756872,0.79345701,122180.0,122170.0,0.13851922]
[1760018757226,1.38404344,122180.0,122170.0,0.0856297]
[1760018757431,0.16375992,122130.0,122120.0,0.01631]
[1760018757636,0.09999999,122120.0,122110.0,0.16385674]
[1760018757843,0.18312205,122120.0,122110.0,0.2052282]
[1760018758098,0.18312205,122120.0,122110.0,0.4423282]
[1760018758303,0.20385205,122120.0,122110.0,0.51468258]
[1760018758505,0.20385205,122120.0,122110.0,0.51452258]
[1760018758893,0.20385205,122120.0,122110.0,0.33536258]
[1760018759099,0.02073,122150.0,122130.0,0.16374821]
[1760018759323,0.08312206,122150.0,122140.0,0.55606652]
[1760018759501,0.18312205,122150.0,122140.0,0.26448652]
[1760018759701,0.61383205,122150.0,122140.0,0.51310652]
[1760018759928,0.57218205,122150.0,122140.0,0.24886652]
[1760018760122,0.54385205,122150.0,122140.0,0.24886652]
[1760018760302,0.52312205,122150.0,122140.0,0.2950471]
[1760018760702,0.09999999,122160.0,122150.0,0.16373311]
[1760018760902,0.12072999,122170.0,122160.0,0.16371971]
[1760018761166,0.19808129,122170.0,122160.0,0.22305168]
[1760018761377,0.02073,122190.0,122180.0,0.16369291]
[1760018761558,0.13569189,122190.0,122180.0,0.54539166]
[1760018761796,0.47569189,122190.0,122180.0,0.51265291]
[1760018762132,0.03584398,122190.0,122180.0,0.51265291]
[1760018762337,0.21896603,122190.0,122180.0,0.51265291]
[1760018762755,0.14729604,122190.0,122180.0,0.51265291]
[1760018762957,0.58729603,122190.0,122180.0,0.51265291]
[1760018763162,0.5886591,122190.0,122180.0,0.51265291]
[1760018763370,0.48865911,122190.0,122180.0,0.51265291]
[1760018763607,0.1995991,122190.0,122180.0,0.52409583]
[1760018763825,0.09959911,122190.0,122180.0,0.59123583]
[1760018764042,0.1995991,122190.0,122180.0,0.55099583]
[1760018764872,0.1995991,122190.0,122180.0,0.24881291]
[1760018765085,0.2486591,122190.0,122180.0,0.24881291]
[1760018765292,0.1995991,122190.0,122180.0,0.27615291]
[1760018765498,0.1995991,122190.0,122180.0,0.51181291]
[1760018766130,0.1995991,122190.0,122180.0,0.27615291]
[1760018766345,0.01647705,122190.0,122180.0,0.62485966]
[1760018766560,0.01647705,122190.0,122180.0,0.24947966]
[1760018766779,0.09999999,122140.0,122120.0,0.17195951]
[1760018766992,0.09999999,122130.0,122120.0,0.18948057]
[1760018767211,0.34,122150.0,122140.0,0.16374652]
[1760018767422,0.16370669,122170.0,122150.0,0.1779602]
[1760018767636,0.09999999,122160.0,122150.0,0.1779602]
[1760018767857,0.09999999,122160.0,122150.0,0.4452402]
[1760018768068,0.52312205,122160.0,122150.0,0.3545974]
[1760018768290,0.42312206,122160.0,122150.0,0.54547051]
[1760018768509,0.52312205,122160.0,122150.0,0.51813051]
[1760018768725,0.52312205,122160.0,122150.0,0.51805051]
[1760018768990,0.52312205,122160.0,122150.0,0.60317051]
[1760018769202,0.52312205,122160.0,122150.0,0.3371901]
[1760018769407,0.53810059,122160.0,122150.0,0.5308727]
[1760018770050,0.53810059,122160.0,122150.0,0.1789927]
[1760018770278,0.7225703,122160.0,122150.0,0.4315127]
[1760018770489,0.55885059,122160.0,122150.0,0.5163527]
[1760018771146,0.4588506,122160.0,122150.0,0.58578641]
[1760018771360,0.55885059,122160.0,122150.0,0.58578641]
[1760018771773,0.55885059,122160.0,122150.0,0.5163527]
[1760018772440,0.7225703,122160.0,122150.0,0.5163527]
[1760018772654,0.55885059,122160.0,122150.0,0.2498727]
[1760018772879,0.4381006,122160.0,122150.0,0.5157927]
[1760018773105,0.55885059,122160.0,122150.0,0.5156727]
[1760018773310,0.53810059,122160.0,122150.0,0.5155927]
[1760018773522,0.53810059,122160.0,122150.0,0.61242855]
[1760018773961,0.53810059,122160.0,122150.0,0.00101959]
[1760018773962,1.34110673,122160.0,122150.0,0.00101959]
[1760018774208,1.39900307,122160.0,122150.0,0.00101959]
[1760018774417,1.39897674,122160.0,122150.0,0.00101959]
[1760018774653,0.00818732,122140.0,122110.0,7e-05]
[1760018774877,1.19435975,122120.0,122110.0,0.08519]
[1760018775092,1.39903036,122120.0,122110.0,0.35075]
[1760018775304,0.79121759,122120.0,122110.0,0.08519]
[1760018775483,0.19807426,122120.0,122110.0,0.23929233]
[1760018775717,0.19807426,122120.0,122110.0,0.58981233]
[1760018777630,0.19807426,122120.0,122110.0,0.61728233]
[1760018778239,0.19807426,122120.0,122110.0,0.32441233]
[1760018778452,0.19807426,122120.0,122110.0,0.58937233]
[1760018778652,0.19807426,122120.0,122110.0,0.52785674]
[1760018778857,0.19807426,122120.0,122110.0,0.26321674]
[1760018779069,0.19807426,122120.0,122110.0,0.52785674]
[1760018779278,0.19807426,122120.0,122110.0,0.52777674]
[1760018779494,0.18312205,122120.0,122110.0,0.60777354]
[1760018779931,0.23182205,122120.0,122110.0,0.44257674]
[1760018780145,0.23182205,122120.0,122110.0,0.52769674]
[1760018780563,0.23182205,122120.0,122110.0,0.26321674]
[1760018780772,0.20387205,122120.0,122110.0,0.52753674]
[1760018780987,0.20387205,122120.0,122110.0,0.52737674]
[1760018781190,0.20387205,122120.0,122110.0,0.52941676]
[1760018781612,0.20387205,122120.0,122110.0,0.54998815]
[1760018781824,0.18312205,122120.0,122110.0,0.57745815]
[1760018782456,0.18312205,122120.0,122110.0,0.31329815]
[1760018783076,0.18312205,122120.0,122110.0,0.57689815]
[1760018783280,0.18312205,122120.0,122110.0,0.54938815]
[1760018783489,0.18312205,122120.0,122110.0,0.52865676]
[1760018783694,0.18312205,122120.0,122110.0,0.55612676]
[1760018784110,0.09999999,122120.0,122110.0,0.55612676]
[1760018784339,0.09999999,122120.0,122110.0,0.58436676]
[1760018784553,0.09999999,122120.0,122110.0,0.58452676]
[1760018784769,0.46087441,122140.0,122130.0,0.16375992]
[1760018784980,0.58681683,122140.0,122130.0,0.42707992]
[1760018785191,0.58681683,122140.0,122130.0,0.16477976]
[1760018785402,0.43811684,122140.0,122130.0,0.46972976]
[1760018785604,0.53811683,122140.0,122130.0,0.46972976]
[1760018786036,0.19811683,122140.0,122130.0,0.53307888]
[1760018786233,0.19811739,122140.0,122130.0,0.53275888]
[1760018786437,0.18324647,122140.0,122130.0,0.53275888]
[1760018786852,0.18324647,122140.0,122130.0,0.56123888]
[1760018787053,0.18324647,122140.0,122130.0,0.53255888]
[1760018787261,0.18424647,122140.0,122130.0,0.53255888]
[1760018787671,0.20399647,122140.0,122130.0,0.07860896]
[1760018787885,0.18324647,122140.0,122130.0,0.29164976]
[1760018788102,0.18324647,122140.0,122130.0,0.55408976]
[1760018789429,0.18324647,122140.0,122130.0,0.29164976]
[1760018789637,0.18324647,122140.0,122130.0,0.55392976]
[1760018789862,0.18324647,122140.0,122130.0,0.55368976]
[1760018790065,0.18324647,122140.0,122130.0,0.62828402]
[1760018790275,0.18324647,122140.0,122130.0,0.62820402]
[1760018790499,0.18324647,122140.0,122130.0,0.36624402]
[1760018790702,0.18324647,122140.0,122130.0,0.28108402]
[1760018790907,0.18324647,122140.0,122130.0,0.62808402]
[1760018791806,0.18324647,122140.0,122130.0,0.62800402]
[1760018792580,0.18324647,122140.0,122130.0,0.28108402]
[1760018792802,0.18324647,122140.0,122130.0,0.62776402]
[1760018793164,0.18324647,122140.0,122130.0,0.39472402]
[1760018793394,0.18324647,122140.0,122130.0,0.62752402]
[1760018793611,0.18324647,122140.0,122130.0,0.62736402]
[1760018794185,0.08324648,122140.0,122130.0,0.62736402]
[1760018794441,0.18324647,122140.0,122130.0,0.62736402]
[1760018795086,0.10012441,122140.0,122130.0,0.39472402]
[1760018795305,0.00012442,122140.0,122130.0,0.39472402]
[1760018795518,0.00012442,122140.0,122130.0,0.65540402]
[1760018795729,1e-08,122140.0,122130.0,0.65540402]
[1760018795942,1e-08,122140.0,122130.0,0.65532402]
[1760018796734,1e-08,122140.0,122130.0,0.47784608]
[1760018796958,1e-08,122140.0,122130.0,0.73824608]
[1760018797379,1e-08,122140.0,122130.0,0.47784608]
[1760018797580,1e-08,122140.0,122130.0,0.81840608]
[1760018797785,1e-08,122140.0,122130.0,1.14094991]
[1760018798125,1e-08,122140.0,122130.0,1.14924904]
[1760018798806,1e-08,122140.0,122130.0,0.46332904]
[1760018799024,1e-08,122140.0,122130.0,0.36620402]
[1760018799231,1e-08,122140.0,122130.0,0.62612402]
[1760018799956,1e-08,122140.0,122130.0,0.65320402]
[1760018800296,1e-08,122140.0,122130.0,0.65308402]
[1760018800706,1.19548288,122140.0,122130.0,0.00101984]
[1760018800906,1.21042465,122140.0,122130.0,0.15417984]
[1760018801356,1.22763534,122140.0,122130.0,0.15417984]
[1760018802211,1.25322593,122140.0,122130.0,0.15417984]
[1760018802427,1.25522593,122140.0,122130.0,0.15417984]
[1760018803486,1.22963534,122140.0,122130.0,0.26141984]
[1760018803904,1.22963534,122140.0,122130.0,0.00101984]
[1760018804193,1.22963534,122140.0,122130.0,0.26081984]
[1760018807020,0.64355452,122140.0,122130.0,0.26013984]
[1760018807230,1.21242465,122140.0,122130.0,0.00101984]
[1760018807649,1.22963386,122140.0,122130.0,0.34513984]
[1760018807856,1.22963386,122140.0,122130.0,0.25997984]
[1760018808070,0.80729956,122140.0,122130.0,0.25997984]
[1760018808269,1.22963386,122140.0,122130.0,0.00101984]
[1760018808410,1.22963386,122140.0,122130.0,0.25993984]
[1760018808625,1.22963386,122140.0,122130.0,0.00101984]
[1760018808858,1.11242466,122140.0,122130.0,0.00101984]
[1760018809037,1.21242465,122140.0,122130.0,0.25973984]
[1760018811098,0.55929383,122140.0,122130.0,0.47436698]
[1760018811308,0.46553384,122140.0,122130.0,0.17773976]
[1760018811514,0.58480383,122140.0,122130.0,0.43589976]
[1760018811720,0.48480384,122140.0,122130.0,0.43589976]
[1760018811927,0.58480383,122140.0,122130.0,0.43589976]
[1760018812133,0.58280383,122140.0,122130.0,0.43589976]
[1760018812543,0.58380383,122140.0,122130.0,0.52117976]
[1760018812740,0.48380384,122140.0,122130.0,0.52117976]
[1760018812948,0.58380383,122140.0,122130.0,0.54653976]
[1760018813161,0.58380383,122140.0,122130.0,0.24877097]
[1760018813370,0.58380383,122140.0,122130.0,0.52085976]
[1760018813790,0.62486383,122140.0,122130.0,0.24993976]
[1760018814007,0.58380383,122140.0,122130.0,0.52073976]
[1760018814227,0.58380383,122140.0,122130.0,0.17773976]
[1760018814491,0.58380383,122140.0,122130.0,0.43541976]
[1760018814709,0.58380383,122140.0,122130.0,0.52057976]
[1760018816443,0.62486383,122140.0,122130.0,0.52057976]
[1760018816656,0.58401229,122140.0,122130.0,0.52057976]
[1760018817078,0.74775881,122140.0,122130.0,0.52057976]
[1760018817296,0.16377333,122120.0,122110.0,7e-05]
[1760018817517,0.80344145,122120.0,122110.0,0.25759]
[1760018817754,1.20997145,122120.0,122110.0,7e-05]
[1760018817978,0.60378673,122110.0,122100.0,0.19501088]
[1760018818165,1.20172399,122110.0,122100.0,0.19501088]
[1760018818421,1.48455399,122110.0,122100.0,0.19501088]
[1760018818858,1.22719399,122110.0,122100.0,0.19501088]
[1760018819305,1.22717854,122110.0,122100.0,0.19501088]
[1760018819755,1.28868515,122110.0,122100.0,0.19501088]
[1760018819969,1.29068515,122110.0,122100.0,0.19501088]
[1760018820189,0.48478838,122110.0,122100.0,0.19501088]
[1760018820400,0.68963512,122110.0,122100.0,0.61593104]
[1760018820612,0.78963511,122110.0,122100.0,0.61593104]
[1760018820819,0.78963511,122110.0,122100.0,0.35881104]
[1760018820820,0.94817601,122110.0,122100.0,0.35881104]
[1760018821027,0.78962844,122110.0,122100.0,0.19501088]
[1760018821239,1.21196274,122110.0,122100.0,0.45201088]
[1760018821452,1.21196274,122110.0,122100.0,0.19501088]
[1760018821661,0.78962844,122110.0,122100.0,0.45197088]
[1760018821873,1.21196274,122110.0,122100.0,0.19501088]
[1760018822135,1.21196274,122110.0,122100.0,0.45185088]
[1760018822352,1.21196274,122110.0,122100.0,0.45181088]
[1760018822560,0.68962845,122110.0,122100.0,0.19501088]
[1760018822788,0.78962844,122110.0,122100.0,0.61557104]
[1760018823010,0.08512206,122110.0,122100.0,0.68300104]
[1760018823223,0.08512206,122110.0,122100.0,0.50595784]
[1760018823437,0.18512205,122110.0,122100.0,0.50595784]
[1760018823651,0.18512205,122110.0,122100.0,0.84811784]
[1760018824504,0.18512205,122110.0,122100.0,0.50595784]
[1760018824713,0.18512205,122110.0,122100.0,0.73996104]
[1760018825135,0.18512205,122110.0,122100.0,0.39804104]
[1760018825383,0.18512205,122110.0,122100.0,0.4847313]
[1760018825611,0.18512205,122110.0,122100.0,0.7413313]
[1760018825827,0.18312205,122110.0,122100.0,0.8492481]
[1760018826511,0.18312205,122110.0,122100.0,0.8213281]
[1760018826736,0.18312205,122110.0,122100.0,0.8482481]
[1760018827201,0.08312206,122110.0,122100.0,0.8480481]
[1760018828603,0.34,122120.0,122110.0,0.16378674]
[1760018828918,0.42312206,122120.0,122110.0,0.48816341]
[1760018829116,0.01947847,122140.0,122130.0,0.16375992]
[1760018829329,0.08333053,122140.0,122130.0,0.54312992]
[1760018829743,0.08333053,122140.0,122130.0,0.28732992]
[1760018829918,0.08333053,122140.0,122130.0,0.58681197]
[1760018830122,0.08333053,122140.0,122130.0,0.33109197]
[1760018830329,0.10846053,122140.0,122130.0,0.56141197]
[1760018830519,0.10846053,122140.0,122130.0,0.56133197]
[1760018830520,0.12795053,122140.0,122130.0,0.56133197]
[1760018830922,0.10282053,122140.0,122130.0,0.58810197]
[1760018831161,0.08333053,122140.0,122130.0,0.33250197]
[1760018831378,0.08333053,122140.0,122130.0,0.58802197]
[1760018831585,0.18333052,122140.0,122130.0,0.58802197]
[1760018831781,0.18333052,122140.0,122130.0,0.58786197]
[1760018831782,0.08333053,122140.0,122130.0,0.58786197]
[1760018832005,0.18333052,122140.0,122130.0,0.50258197]
[1760018832210,0.08333053,122140.0,122130.0,0.33250197]
[1760018832413,0.00020847,122140.0,122130.0,0.61466197]
[1760018832821,0.00020847,122140.0,122130.0,0.61454197]
[1760018834215,0.00020847,122140.0,122130.0,0.52922197]
[1760018834447,0.00020847,122140.0,122130.0,0.61438197]
[1760018835794,0.00020847,122140.0,122130.0,0.35942197]
[1760018836005,0.00020847,122140.0,122130.0,0.60402197]
[1760018836438,0.00020847,122140.0,122130.0,0.94466197]
[1760018836675,0.00020847,122140.0,122130.0,0.69006197]
[1760018836880,0.00020847,122140.0,122130.0,0.94462197]
[1760018837773,0.01949,122200.0,122190.0,0.16367951]
[1760018837981,0.1027644,122200.0,122190.0,0.22068746]
[1760018838194,0.22789439,122200.0,122190.0,0.53379746]
[1760018838422,0.13044247,122200.0,122190.0,0.53379746]
[1760018838638,0.57850077,122200.0,122190.0,0.53379746]
[1760018838858,0.23850077,122200.0,122190.0,0.19391746]
[1760018839074,0.57850077,122200.0,122190.0,0.53371746]
[1760018839289,0.16368589,122190.0,122180.0,0.16369291]
[1760018839549,0.78863224,122190.0,122180.0,0.16369291]
[1760018839759,0.16371971,122160.0,122150.0,0.16373008]
[1760018839939,0.09999999,122150.0,122140.0,0.24886652]
[1760018840185,0.26730205,122150.0,122140.0,0.29191378]
[1760018840366,0.43103516,122150.0,122140.0,0.20679378]
[1760018840641,0.50374652,122140.0,122130.0,0.00136379]
[1760018840842,1.12869287,122140.0,122130.0,0.34088379]
[1760018841050,1.19338287,122140.0,122130.0,0.34103525]
[1760018841295,1.19338287,122140.0,122130.0,0.00151525]
[1760018841715,1.20829064,122140.0,122130.0,0.00151525]
[1760018842560,0.77104857,122140.0,122130.0,0.00151525]
[1760018842778,1.09338288,122140.0,122130.0,0.00151525]
[1760018843193,1.19338287,122140.0,122130.0,0.00151525]
[1760018843636,1.19538287,122140.0,122130.0,0.16527517]
[1760018843819,1.09538288,122140.0,122130.0,0.41939517]
[1760018844021,1.09538288,122140.0,122130.0,0.25563525]
[1760018844256,0.26930205,122140.0,122130.0,0.16527517]
[1760018844464,0.69163635,122140.0,122130.0,0.00151525]
[1760018844663,0.85538287,122140.0,122130.0,0.25539525]
[1760018844805,0.85538287,122140.0,122130.0,0.41911517]
[1760018845052,1.19538287,122140.0,122130.0,0.41911517]
[1760018845641,1.19538287,122140.0,122130.0,0.16527517]
[1760018845847,1.19338287,122140.0,122130.0,0.25511525]
[1760018846261,1.19438287,122140.0,122130.0,0.00151525]
[1760018847119,0.77204857,122140.0,122130.0,0.25531525]
[1760018847263,1.19438287,122140.0,122130.0,0.25531525]
[1760018848121,1.19438287,122140.0,122130.0,0.41907517]
[1760018848324,1.03063635,122140.0,122130.0,0.16527517]
[1760018848489,0.46874206,122140.0,122130.0,0.16527517]
[1760018848699,0.22874205,122140.0,122130.0,0.41879517]
[1760018848900,0.56874205,122140.0,122130.0,0.41879517]
[1760018849128,1.19438287,122140.0,122130.0,0.00151525]
[1760018849330,1.19438287,122140.0,122130.0,0.34007525]
[1760018849568,1.19338287,122140.0,122130.0,0.34007525]
[1760018850106,1.19338287,122140.0,122130.0,0.00151525]
[1760018850335,1.19338287,122140.0,122130.0,0.25479525]
[1760018850336,0.77104857,122140.0,122130.0,0.25479525]
[1760018850581,1.36296184,122140.0,122130.0,0.25479525]
[1760018850799,0.70635857,122140.0,122130.0,0.43250517]
[1760018851008,1.36296184,122140.0,122130.0,0.25487525]
[1760018851233,1.36296184,122140.0,122130.0,0.25483525]
[1760018851442,1.36296184,122140.0,122130.0,0.33999525]
[1760018851854,1.36296184,122140.0,122130.0,0.00151525]
[1760018852061,0.77104857,122140.0,122130.0,0.00151525]
[1760018852231,1.37988156,122140.0,122130.0,0.00151525]
[1760018852432,0.78796829,122140.0,122130.0,0.25463525]
[1760018852672,1.37988156,122140.0,122130.0,0.25463525]
[1760018853287,0.46974206,122140.0,122130.0,0.16527517]
[1760018853536,0.08312206,122140.0,122130.0,0.22633694]
[1760018853775,0.11999977,122160.0,122150.0,0.16373311]
[1760018854053,0.20312183,122160.0,122150.0,0.52955679]
[1760018854322,0.18363183,122160.0,122150.0,0.54175311]
[1760018855035,0.18363183,122160.0,122150.0,0.20355311]
[1760018855284,0.18363183,122160.0,122150.0,0.49581507]
[1760018855533,0.10050977,122160.0,122150.0,0.58097507]
[1760018855843,0.10050977,122160.0,122150.0,0.60789507]
[1760018856323,0.10050977,122160.0,122150.0,0.21620507]
[1760018856533,0.27599781,122160.0,122130.0,0.00151525]
[1760018856744,1.27878184,122140.0,122130.0,0.00151525]
[1760018856939,1.3131964,122140.0,122130.0,0.00151525]
[1760018857137,1.3778864,122140.0,122130.0,0.00151525]
[1760018857899,1.43959277,122140.0,122130.0,0.00151525]
[1760018858619,1.3778864,122140.0,122130.0,0.00151525]
[1760018858796,0.68597314,122140.0,122130.0,0.25599525]
[1760018859023,0.78597313,122140.0,122130.0,0.00151525]
[1760018859224,1.3778864,122140.0,122130.0,0.00151525]
[1760018859442,1.3798864,122140.0,122130.0,0.00151525]
[1760018861025,0.78797313,122140.0,122130.0,0.00151525]
[1760018861237,1.3798864,122140.0,122130.0,0.00151525]
[1760018861674,1.27988641,122140.0,122130.0,0.00151525]
[1760018861901,1.6339264,122140.0,122130.0,0.00151525]
[1760018862103,0.81812503,122140.0,122130.0,0.00151525]
[1760018862305,1.4100383,122140.0,122130.0,0.00151525]
[1760018862508,1.47283133,122140.0,122130.0,0.00151525]
[1760018862845,1.37283134,122140.0,122130.0,0.00151525]
[1760018863042,1.47283133,122140.0,122130.0,0.00151525]
[1760018863246,0.21437852,122140.0,122130.0,0.00151525]
[1760018863493,0.12917206,122140.0,122130.0,0.25043517]
[1760018863695,0.73291857,122140.0,122130.0,0.50419517]
[1760018864077,0.22917205,122140.0,122130.0,0.25043517]
[1760018864274,0.26635858,122140.0,122130.0,0.51806517]
[1760018864475,0.73366857,122140.0,122130.0,0.50407517]
[1760018864654,0.39366857,122140.0,122130.0,0.50407517]
[1760018864860,0.73366857,122140.0,122130.0,0.50399517]
[1760018865084,0.20361205,122140.0,122130.0,0.51750517]
[1760018865292,0.36735857,122140.0,122130.0,0.51750517]
[1760018865490,0.54361205,122140.0,122130.0,0.51750517]
[1760018865841,0.39366857,122140.0,122130.0,0.50387517]
[1760018865963,0.73266857,122140.0,122130.0,0.50387517]
[1760018866165,0.73266857,122140.0,122130.0,0.25043517]
[1760018866166,0.56892205,122140.0,122130.0,0.25043517]
[1760018866365,0.56892205,122140.0,122130.0,0.51738517]
[1760018866604,0.73266857,122140.0,122130.0,0.51738517]
[1760018867255,0.56892205,122140.0,122130.0,0.26394517]
[1760018867460,0.54261205,122140.0,122130.0,0.51726517]
[1760018867701,0.42312206,122140.0,122130.0,0.54139517]
[1760018867971,0.52312205,122140.0,122130.0,0.60949894]
[1760018868242,0.42312206,122140.0,122130.0,0.38146894]
[1760018868467,0.52372019,122160.0,122150.0,0.16373311]
[1760018868709,0.1180701,122160.0,122150.0,0.42843311]
[1760018868929,0.0985801,122160.0,122150.0,0.45252311]
[1760018869141,0.19858009,122160.0,122150.0,0.51173988]
[1760018869350,0.4440698,122160.0,122150.0,0.05921677]
[1760018869562,0.7840698,122160.0,122150.0,0.50173311]
[1760018869772,0.7476198,122160.0,122150.0,0.51351311]
[1760018869987,0.16373323,122150.0,122130.0,0.25507693]
[1760018870208,0.7860698,122160.0,122130.0,0.25507693]
[1760018870209,0.62523948,122160.0,122150.0,0.08516]
[1760018870429,0.16374652,122140.0,122130.0,0.00151525]
[1760018870636,1.2597886,122140.0,122130.0,0.00151525]
[1760018870855,1.3225486,122140.0,122130.0,0.00151525]
[1760018871923,1.5755886,122140.0,122130.0,0.00151525]
[1760018872957,1.40567066,122140.0,122130.0,0.00151525]
[1760018873150,1.66623368,122140.0,122130.0,0.00151525]
[1760018873715,1.68347208,122140.0,122130.0,0.00151525]
[1760018874115,1.74418388,122140.0,122130.0,0.00151525]
[1760018874314,1.74418169,122140.0,122130.0,0.00151525]
[1760018875216,1.72694548,122140.0,122130.0,0.00151525]
[1760018875464,1.49110031,122140.0,122130.0,0.00151525]
[1760018875658,1.0268292,122140.0,122130.0,0.00151525]
[1760018875978,1.71874246,122140.0,122130.0,0.00151525]
[1760018876301,1.61870247,122140.0,122130.0,0.00151525]
[1760018876499,1.71870246,122140.0,122130.0,0.00151525]
[1760018877563,1.71970246,122140.0,122130.0,0.00151525]
[1760018877762,1.46738246,122140.0,122130.0,0.00151525]
[1760018877982,1.71866246,122140.0,122130.0,0.00151525]
[1760018878192,1.72066246,122140.0,122130.0,0.00151525]
[1760018879009,1.72026246,122140.0,122130.0,0.00151525]
[1760018879611,1.46838246,122140.0,122130.0,0.00151525]
[1760018879815,1.72026246,122140.0,122130.0,0.00151525]
[1760018880012,1.46838246,122140.0,122130.0,0.00151525]
[1760018880436,1.72026246,122140.0,122130.0,0.00151525]
[1760018880859,1.36838247,122140.0,122130.0,0.00151525]
[1760018881060,1.62026247,122140.0,122130.0,0.00151525]
[1760018881474,1.36838247,122140.0,122130.0,0.00151525]
[1760018881810,1.62026247,122140.0,122130.0,0.00151525]
[1760018882139,0.31201087,122140.0,122130.0,0.00151525]
[1760018882339,0.3757574,122140.0,122130.0,0.00151525]
[1760018882542,0.47575739,122140.0,122130.0,0.00151525]
[1760018882741,0.81575739,122140.0,122130.0,0.00151525]
[1760018882958,1.40767066,122140.0,122130.0,0.00151525]
[1760018883163,1.40567066,122140.0,122130.0,0.00151525]
[1760018883776,1.25085189,122110.0,122100.0,1e-08]
[1760018884089,1.70499087,122110.0,122100.0,0.00050714]
[1760018884296,0.29397888,122080.0,122070.0,0.0004]
[1760018884665,1.32853199,122080.0,122070.0,0.0004]
[1760018884870,1.60672199,122080.0,122070.0,0.0004]
[1760018885075,1.39129199,122080.0,122070.0,0.0004]
[1760018885675,1.64317199,122080.0,122070.0,0.0004]
[1760018885897,1.39129199,122080.0,122070.0,0.0004]
[1760018886080,1.41629198,122080.0,122070.0,0.0004]
[1760018886319,1.43123808,122080.0,122070.0,0.0004]
[1760018886743,0.0301519,122050.0,122040.0,0.0004]
[1760018886954,0.15515188,122030.0,122020.0,0.10115358]
[1760018887163,1.33408133,122030.0,122020.0,0.10115358]
[1760018887370,1.64273134,122030.0,122020.0,0.10115358]
[1760018887591,1.22695722,122030.0,122020.0,0.10115358]
[1760018887819,1.05085807,122030.0,122020.0,0.10115358]
[1760018888062,1.39085134,122030.0,122020.0,0.10115358]
[1760018888266,1.39135849,122030.0,122020.0,0.10115358]
[1760018888454,1.64327849,122030.0,122020.0,0.10115358]
[1760018888649,1.5432785,122030.0,122020.0,0.10115358]
[1760018888933,1.64327849,122030.0,122020.0,0.10115358]
[1760018889169,1.70607896,122030.0,122020.0,0.10115358]
[1760018889398,1.45415896,122030.0,122020.0,0.10115358]
[1760018889631,1.45415896,122030.0,122020.0,0.10676821]
[1760018889871,0.65907287,122010.0,122000.0,0.0461]
[1760018890119,1.32883821,122010.0,122000.0,0.0461]
[1760018890373,1.4177582,122010.0,122000.0,0.00577]
[1760018890622,0.16394786,121990.0,121980.0,0.10442493]
[1760018890830,1.64047447,121990.0,121980.0,0.10442493]
[1760018891040,1.67753447,121990.0,121980.0,0.10442493]
[1760018891255,1.76492262,121990.0,121980.0,0.10442493]
[1760018891472,1.78992261,121990.0,121980.0,0.10442493]
[1760018891738,1.56630751,121990.0,121980.0,0.10442493]
[1760018891971,1.56681435,121990.0,121980.0,0.10442493]
[1760018892174,1.81695746,121990.0,121980.0,0.10442493]
[1760018892381,1.56499746,121990.0,121980.0,0.10442493]
[1760018892589,2.24303746,121990.0,121980.0,0.10442493]
[1760018892790,1.63846945,121990.0,121980.0,0.10442493]
[1760018892998,2.34307746,121990.0,121980.0,0.10442493]
[1760018893215,1.5140376,121990.0,121980.0,0.10442493]
[1760018893428,2.2921176,121990.0,121980.0,0.10442493]
[1760018893630,2.24107782,121990.0,121980.0,0.10442493]
[1760018893838,1.9549576,121990.0,121980.0,0.10442493]
[1760018894045,1.8660376,121990.0,121980.0,0.10442493]
[1760018894271,1.63642981,121990.0,121980.0,0.10442493]
[1760018894480,1.66595782,121990.0,121980.0,0.10442493]
[1760018894682,2.34419782,121990.0,121980.0,0.10442493]
[1760018894889,2.06562981,121990.0,121980.0,0.10442493]
[1760018895096,2.1952776,121990.0,121980.0,0.10442493]
[1760018895309,2.31580381,121990.0,121980.0,0.10442493]
[1760018895525,2.06376381,121990.0,121980.0,1e-08]
[1760018895768,1.6170376,121990.0,121980.0,1e-08]
[1760018895980,2.34363169,121990.0,121980.0,1e-08]
[1760018896190,1.63886368,121990.0,121980.0,1e-08]
[1760018896397,2.2952776,121990.0,121980.0,0.00102173]
[1760018896808,1.6170376,121990.0,121980.0,0.00102173]
[1760018897006,2.2953176,121990.0,121980.0,0.00102173]